bitfinex-derivatives/quotes_BTCF0:USTF0_20251215
["timestamp","ask_amount","ask_price","bid_price","bid_amount"]
[1765785974570,0.06030575,89858.0,89857.0,0.0422501]
[1765785977371,0.06030575,89858.0,89857.0,0.39192]
[1765785977875,0.06030575,89858.0,89857.0,0.03112]
[1765785988776,0.03177575,89858.0,89857.0,0.03112]
[1765785988983,0.05883575,89858.0,89857.0,0.39192]
[1765785990886,0.05883575,89858.0,89857.0,0.37686]
[1765785993698,0.05883575,89858.0,89849.0,0.00016693]
[1765785993699,0.0840009,89850.0,89849.0,0.00016693]
[1765785993990,0.4448009,89850.0,89849.0,0.05848693]
[1765785994185,0.0840009,89850.0,89849.0,0.05848693]
[1765785994489,0.07287,89850.0,89849.0,0.05848693]
[1765785995079,0.05655,89850.0,89849.0,0.05848693]
[1765785995281,0.02935,89853.0,89852.0,0.05832]
[1765785995481,0.05655,89853.0,89852.0,0.05832]
[1765785995885,0.05655,89853.0,89852.0,0.41912]
[1765785996083,0.0600526,89856.0,89855.0,0.05832]
[1765785996290,0.0600526,89857.0,89855.0,0.05832]
[1765785996490,0.0600526,89857.0,89856.0,0.05832]
[1765785996689,0.0894026,89857.0,89856.0,0.05832]
[1765785996890,0.1166026,89857.0,89856.0,0.05832]
[1765785997186,0.05655,89853.0,89852.0,0.42012]
[1765785998978,0.05655,89853.0,89852.0,0.41912]
[1765785999288,0.05655,89853.0,89852.0,0.4302507]
[1765785999689,0.08750703,89856.0,89852.0,0.4302507]
[1765785999690,0.07118703,89856.0,89852.0,0.4302507]
[1765785999993,0.001,89853.0,89852.0,0.4312507]
[1765786002095,0.11760683,89856.0,89855.0,0.05832]
[1765786002495,0.11660683,89856.0,89855.0,0.05832]
[1765786003385,0.11760683,89856.0,89855.0,0.05932]
[1765786004685,0.07387,89856.0,89855.0,0.05932]
[1765786006093,0.07387,89856.0,89855.0,0.001]
[1765786006485,0.07387,89856.0,89855.0,0.02967]
[1765786007187,0.07387,89856.0,89855.0,0.05932]
[1765786011194,0.07387,89856.0,89855.0,0.001]
[1765786011404,0.07387,89856.0,89855.0,0.05932]
[1765786019093,0.001,89856.0,89855.0,0.05932]
[1765786019402,0.06107307,89856.0,89855.0,0.43515]
[1765786019900,0.11813307,89856.0,89855.0,0.42012]
[1765786020500,0.06107307,89856.0,89855.0,0.42012]
[1765786021001,0.001,89856.0,89855.0,0.42012]
[1765786021504,0.03029,89856.0,89855.0,0.42012]
[1765786021702,0.001,89856.0,89855.0,0.42012]
[1765786025904,0.07593,89856.0,89855.0,0.39047]
[1765786026106,0.07593,89856.0,89855.0,0.41836]
[1765786027102,0.07593,89856.0,89855.0,0.02967]
[1765786027805,0.07593,89856.0,89855.0,0.05756]
[1765786031409,0.07593,89856.0,89855.0,0.02967]
[1765786031600,0.07593,89856.0,89855.0,0.001]
[1765786032810,0.07593,89856.0,89849.0,0.00016693]
[1765786032811,0.0860609,89850.0,89849.0,0.00016693]
[1765786033109,0.0681933,89831.0,89830.0,0.18741026]
[1765786033316,0.05706,89831.0,89830.0,0.05656]
[1765786035505,0.05706,89828.0,89827.0,0.3608]
[1765786035814,0.01787,89832.0,89822.0,0.00016693]
[1765786035815,0.0681943,89823.0,89822.0,0.00016693]
[1765786036403,0.12819845,89823.0,89822.0,0.00016693]
[1765786036604,0.05706,89814.0,89810.0,0.14198606]
[1765786036806,0.05706,89814.0,89810.0,0.0111358]
[1765786037513,0.05706,89814.0,89809.0,0.3608]
[1765786038510,0.05706,89814.0,89813.0,1.505]
[1765786041812,0.0404252,89817.0,89816.0,0.05656]
[1765786042617,0.0681952,89817.0,89816.0,0.05656]
[1765786043116,0.0691952,89817.0,89816.0,0.05656]
[1765786043619,0.0870652,89817.0,89816.0,0.05656]
[1765786044015,0.0870652,89817.0,89816.0,0.06056]
[1765786045509,0.0691952,89817.0,89816.0,0.06056]
[1765786045702,0.05806,89817.0,89816.0,0.06056]
[1765786045908,0.03029,89817.0,89816.0,0.06056]
[1765786046306,0.05806,89817.0,89816.0,0.06056]
[1765786047117,0.05706,89817.0,89816.0,0.05656]
[1765786047418,0.05706,89817.0,89816.0,0.06156]
[1765786047920,0.05706,89817.0,89816.0,0.05656]
[1765786048223,0.05706,89817.0,89816.0,0.06056]
[1765786048716,0.05806,89817.0,89816.0,0.06056]
[1765786050120,0.001,89817.0,89816.0,0.06056]
[1765786050310,0.05679,89817.0,89816.0,0.06056]
[1765786050713,0.05679,89817.0,89816.0,0.03267]
[1765786051011,0.05679,89817.0,89816.0,0.03367]
[1765786051405,0.05679,89817.0,89816.0,0.06284]
[1765786051611,0.05679,89817.0,89816.0,0.05784]
[1765786051812,0.001,89817.0,89816.0,0.06184]
[1765786052324,0.001,89817.0,89816.0,0.004]
[1765786052325,0.05579,89817.0,89816.0,0.004]
[1765786052818,0.05579,89817.0,89816.0,0.03121]
[1765786053028,0.05579,89817.0,89816.0,0.06038]
[1765786053620,0.05679,89817.0,89816.0,0.05638]
[1765786053815,0.05679,89817.0,89816.0,0.06138]
[1765786054419,0.05679,89817.0,89816.0,0.05638]
[1765786054620,0.05679,89817.0,89816.0,0.06038]
[1765786062715,0.05679,89817.0,89816.0,0.0715152]
[1765786063025,0.05679,89817.0,89816.0,0.06038]
[1765786063928,0.05679,89817.0,89816.0,0.0715152]
[1765786064329,0.001,89817.0,89816.0,0.4323152]
[1765786065517,0.13588352,89825.0,89824.0,0.05638]
[1765786067118,0.13588352,89825.0,89824.0,0.05938]
[1765786068015,0.13688352,89825.0,89824.0,0.05938]
[1765786068422,0.13588352,89825.0,89824.0,0.05938]
[1765786068627,0.13688352,89825.0,89824.0,0.06038]
[1765786069028,0.13588352,89825.0,89824.0,0.06038]
[1765786069230,0.13588352,89825.0,89824.0,0.05638]
[1765786069231,0.13688352,89825.0,89824.0,0.05638]
[1765786069426,0.13688352,89825.0,89824.0,0.06038]
[1765786070127,0.05679,89825.0,89824.0,0.05938]
[1765786070523,0.001,89825.0,89824.0,0.4313142]
[1765786071126,0.06011997,89828.0,89827.0,0.05638]
[1765786071322,0.00016662,89839.0,89826.0,0.015]
[1765786071323,0.06011997,89829.0,89828.0,0.0675137]
[1765786072234,0.06011997,89830.0,89828.0,0.0675137]
[1765786072435,0.06011997,89830.0,89829.0,0.05638]
[1765786073432,0.06011997,89832.0,89831.0,0.05638]
[1765786074241,0.06011997,89833.0,89832.0,0.0675132]
[1765786074532,0.06011997,89833.0,89832.0,0.4283132]
[1765786075127,0.08738997,89833.0,89832.0,0.4283132]
[1765786075524,0.11590997,89833.0,89832.0,0.4283132]
[1765786075728,0.11590997,89833.0,89832.0,0.4323132]
[1765786077319,0.02827,89833.0,89832.0,0.4323132]
[1765786077928,0.02727,89833.0,89832.0,0.4323132]
[1765786078235,0.02727,89833.0,89832.0,0.4283132]
[1765786078427,0.02727,89833.0,89832.0,0.4323132]
[1765786079038,0.05512,89833.0,89832.0,0.4283132]
[1765786079340,0.05512,89833.0,89832.0,0.4323132]
[1765786080931,0.05512,89833.0,89832.0,0.42118]
[1765786081236,0.11523997,89833.0,89832.0,0.004]
[1765786081428,0.05512,89833.0,89832.0,0.004]
[1765786081635,0.05512,89833.0,89832.0,0.03157]
[1765786081941,0.05512,89833.0,89832.0,0.02757]
[1765786082130,0.05546,89822.0,89821.0,0.1185]
[1765786082332,0.01772,89826.0,89820.0,0.00016693]
[1765786082333,0.0665945,89821.0,89820.0,0.00016693]
[1765786084737,0.0675945,89821.0,89820.0,0.00016693]
[1765786084944,0.0675945,89821.0,89820.0,0.00416693]
[1765786085446,0.05646,89821.0,89820.0,0.05914693]
[1765786087733,0.001,89821.0,89820.0,0.05914693]
[1765786087925,0.001,89821.0,89820.0,0.07416693]
[1765786088333,0.02861,89821.0,89820.0,0.05914693]
[1765786088533,0.05646,89821.0,89820.0,0.05914693]
[1765786088843,0.05546,89821.0,89820.0,0.05914693]
[1765786089440,0.08762012,89824.0,89823.0,0.05498]
[1765786089638,0.06001012,89826.0,89825.0,0.02757]
[1765786089838,0.06001012,89831.0,89830.0,0.05498]
[1765786090046,0.05546,89837.0,89836.0,0.05498]
[1765786091138,0.00016662,89839.0,89838.0,0.05498]
[1765786091334,0.00016662,89839.0,89838.0,0.07]
[1765786092442,0.00016662,89839.0,89838.0,0.073]
[1765786092645,0.00116662,89839.0,89838.0,0.073]
[1765786094738,0.02877662,89839.0,89838.0,0.05798]
[1765786094938,0.05662662,89839.0,89838.0,0.05798]
[1765786096846,0.02877662,89839.0,89838.0,0.05798]
[1765786097339,0.00116662,89839.0,89838.0,0.05798]
[1765786097942,0.00116662,89839.0,89838.0,0.07298]
[1765786101442,0.05662662,89839.0,89838.0,0.05798]
[1765786105742,0.00116662,89839.0,89838.0,0.073]
[1765786106147,0.02877662,89839.0,89838.0,0.05798]
[1765786106352,0.05662662,89839.0,89838.0,0.05798]
[1765786109854,0.06775892,89839.0,89838.0,0.05798]
[1765786110053,0.06775892,89839.0,89838.0,0.003]
[1765786112053,0.12767813,89839.0,89838.0,0.003]
[1765786112560,0.06775892,89839.0,89838.0,0.003]
[1765786114460,0.0684845,89821.0,89820.0,0.05617693]
[1765786114655,0.0684845,89821.0,89820.0,0.00016693]
[1765786115363,0.0684845,89821.0,89820.0,0.05617693]
[1765786115563,0.0684845,89821.0,89820.0,0.06217693]
[1765786116661,0.0684845,89821.0,89820.0,0.06417693]
[1765786117756,0.0694845,89821.0,89820.0,0.06217693]
[1765786118461,0.05835,89821.0,89820.0,0.05617693]
[1765786118667,0.05835,89821.0,89820.0,0.05817693]
[1765786122854,0.001,89821.0,89820.0,0.07319693]
[1765786125666,0.01644,89838.0,89820.0,0.43399693]
[1765786125875,0.00016662,89839.0,89820.0,0.43399693]
[1765786125876,0.00016662,89839.0,89838.0,0.07103]
[1765786127461,0.00116662,89839.0,89838.0,0.07103]
[1765786128370,0.00116662,89839.0,89838.0,0.07303]
[1765786129373,0.00116662,89839.0,89838.0,0.12303]
[1765786129873,0.00116662,89839.0,89838.0,0.07303]
[1765786130069,0.05851662,89839.0,89838.0,0.05801]
[1765786130260,0.00116662,89839.0,89838.0,0.07303]
[1765786131669,0.08834697,89857.0,89856.0,0.05601]
[1765786131871,0.11729697,89857.0,89856.0,0.05601]
[1765786132063,0.05735,89857.0,89856.0,0.05601]
[1765786133070,0.05835,89857.0,89856.0,0.05701]
[1765786133572,0.05935,89857.0,89856.0,0.05701]
[1765786135678,0.05935,89857.0,89856.0,0.001]
[1765786136272,0.05935,89857.0,89856.0,0.05701]
[1765786138074,0.05935,89857.0,89856.0,0.0681402]
[1765786140869,0.002,89857.0,89856.0,0.0681402]
[1765786141074,0.00222575,89858.0,89857.0,0.05692]
[1765786141275,0.00222575,89858.0,89857.0,0.77852]
[1765786142186,0.00222575,89858.0,89857.0,0.77952]
[1765786147578,0.00222575,89858.0,89857.0,0.77852]
[1765786149181,0.05869575,89858.0,89857.0,0.77852]
[1765786150080,0.03059575,89858.0,89857.0,0.77852]
[1765786150286,0.00222575,89858.0,89857.0,0.77852]
[1765786156986,0.03059575,89858.0,89857.0,0.77852]
[1765786158690,0.05869575,89858.0,89857.0,0.77852]
[1765786159886,0.00222575,89858.0,89857.0,0.77852]
[1765786160383,0.03059575,89858.0,89857.0,0.77852]
[1765786161689,0.05869575,89858.0,89857.0,0.77852]
[1765786162190,0.05869575,89858.0,89857.0,0.41772]
[1765786162794,0.05869575,89858.0,89857.0,0.3608]
[1765786162997,0.05869575,89858.0,89857.0,0.38869]
[1765786163186,0.05869575,89858.0,89848.0,0.13099834]
[1765786163187,0.0676,89849.0,89848.0,0.18791834]
[1765786163386,0.0676,89849.0,89848.0,0.05708693]
[1765786164499,0.0676,89849.0,89848.0,0.05908693]
[1765786164997,0.0676,89849.0,89848.0,0.00216693]
[1765786165198,0.0676,89849.0,89848.0,0.05908693]
[1765786167302,0.0676,89849.0,89848.0,0.00216693]
[1765786171514,0.4284,89849.0,89848.0,0.00216693]
[1765786171804,0.48840935,89849.0,89848.0,0.00216693]
[1765786172104,0.0661911,89840.0,89839.0,0.15968141]
[1765786172305,0.0661911,89840.0,89839.0,0.02885]
[1765786173200,0.0661911,89840.0,89839.0,0.03285]
[1765786173400,0.0661911,89840.0,89839.0,0.03385]
[1765786174104,0.0661911,89840.0,89839.0,0.02985]
[1765786174307,0.0661911,89840.0,89839.0,0.03185]
[1765786174909,0.0661911,89840.0,89839.0,0.06152]
[1765786175993,0.0661911,89840.0,89839.0,0.003]
[1765786176306,0.0661916,89836.0,89835.0,0.38965]
[1765786177609,0.0661916,89836.0,89835.0,0.39165]
[1765786178405,0.0661916,89836.0,89835.0,0.3628]
[1765786179608,0.0661916,89836.0,89835.0,0.39165]
[1765786180109,0.0661916,89836.0,89835.0,0.42132]
[1765786181110,0.0661916,89836.0,89835.0,0.39165]
[1765786181906,0.0661916,89836.0,89835.0,0.002]
[1765786182814,0.05506,89818.0,89817.0,0.41942185]
[1765786183009,0.0661938,89818.0,89817.0,0.41942185]
[1765786184014,0.0661938,89818.0,89817.0,0.42442185]
[1765786184201,0.0661938,89818.0,89817.0,0.42742185]
[1765786184712,0.0661938,89818.0,89817.0,0.00810185]
[1765786185909,0.0661938,89818.0,89817.0,0.00510185]
[1765786186316,0.0661938,89818.0,89817.0,0.00210185]
[1765786188004,0.0661938,89818.0,89809.0,0.00016693]
[1765786188005,0.0661959,89810.0,89809.0,0.00016693]
[1765786188204,0.066197,89801.0,89800.0,0.05852]
[1765786188413,0.05506,89799.0,89798.0,0.3608]
[1765786189112,0.05514263,89799.0,89798.0,0.3608]
[1765786190311,0.05514263,89799.0,89798.0,0.41932]
[1765786191108,0.06114263,89799.0,89798.0,0.41932]
[1765786191915,0.05514263,89799.0,89798.0,0.41932]
[1765786194417,0.05514263,89799.0,89798.0,0.42032]
[1765786195120,0.05514263,89799.0,89798.0,0.41932]
[1765786195315,0.05514263,89799.0,89798.0,0.42032]
[1765786195522,0.05514263,89799.0,89798.0,0.05952]
[1765786195911,0.05514263,89799.0,89798.0,0.05852]
[1765786196112,0.05514263,89799.0,89798.0,0.05952]
[1765786197922,0.05514263,89799.0,89790.0,0.00016703]
[1765786197923,0.0668083,89791.0,89790.0,0.05615703]
[1765786198510,0.0111383,89791.0,89780.0,0.3608]
[1765786198712,0.0111383,89791.0,89778.0,0.00222773]
[1765786198713,0.05567,89779.0,89778.0,0.00222773]
[1765786198918,0.05567,89779.0,89763.0,0.05599]
[1765786198919,0.0668117,89764.0,89763.0,0.05599]
[1765786201416,0.0668117,89764.0,89763.0,0.05699]
[1765786201813,0.0668117,89764.0,89755.0,0.05615703]
[1765786201814,0.0668126,89756.0,89755.0,0.05615703]
[1765786202019,0.0668126,89756.0,89755.0,0.02816703]
[1765786202621,0.0668126,89756.0,89755.0,0.05615703]
[1765786203817,0.0668126,89756.0,89755.0,0.05715703]
[1765786204526,0.0668126,89756.0,89755.0,0.05615703]
[1765786205525,0.0668126,89756.0,89755.0,0.00016703]
[1765786205726,0.05567,89748.0,89747.0,1e-08]
[1765786205917,0.05567,89721.0,89720.0,0.18711453]
[1765786206112,0.05567,89721.0,89720.0,0.05599]
[1765786206424,0.066817,89721.0,89720.0,0.05599]
[1765786206821,0.0669533,89721.0,89720.0,0.05599]
[1765786207528,0.0669533,89721.0,89720.0,0.05999]
[1765786207918,0.0558063,89721.0,89720.0,0.05999]
[1765786208224,0.0001363,89721.0,89720.0,0.05999]
[1765786208527,0.0282563,89721.0,89720.0,0.06299]
[1765786209217,0.0001363,89721.0,89720.0,0.07801]
[1765786218828,0.0001363,89721.0,89720.0,0.18801]
[1765786222126,0.0001363,89721.0,89720.0,0.54881]
[1765786222434,0.0282563,89721.0,89720.0,0.54881]
[1765786222731,0.0558063,89721.0,89720.0,0.76063]
[1765786222921,0.0001363,89721.0,89720.0,1.12143]
[1765786230230,0.08001246,89744.0,89728.0,0.02995]
[1765786230435,0.05649,89752.0,89751.0,0.05891]
[1765786230634,0.05649,89752.0,89751.0,0.75651]
[1765786231039,0.05649,89752.0,89747.0,0.3608]
[1765786231040,0.05649,89743.0,89742.0,0.19010859]
[1765786231340,0.05659373,89743.0,89742.0,0.75651]
[1765786231549,0.00010373,89743.0,89742.0,0.75667]
[1765786232442,0.00010373,89743.0,89742.0,0.75767]
[1765786233247,0.05649,89751.0,89750.0,0.05891]
[1765786234938,0.05649,89751.0,89750.0,0.05991]
[1765786235345,0.05649,89751.0,89750.0,0.06091]
[1765786236043,0.05649,89751.0,89750.0,0.05891]
[1765786236350,0.05649,89751.0,89750.0,0.06091]
[1765786237352,0.05649,89751.0,89750.0,0.06191]
[1765786237850,0.05649,89751.0,89750.0,0.06091]
[1765786238654,0.05649,89751.0,89750.0,0.05991]
[1765786239344,0.05649,89751.0,89750.0,0.05891]
[1765786239546,0.05649,89751.0,89750.0,0.05991]
[1765786239742,0.05649,89751.0,89750.0,0.001]
[1765786240752,0.01623,89754.0,89745.0,0.3608]
[1765786240753,0.05649,89746.0,89745.0,0.3608]
[1765786240952,0.05649,89746.0,89745.0,0.38976]
[1765786241552,0.05649,89746.0,89745.0,0.41971]
[1765786242555,0.05649,89746.0,89745.0,0.42071]
[1765786243747,0.05649,89746.0,89745.0,0.39076]
[1765786243948,0.05649,89746.0,89745.0,0.3618]
[1765786244347,0.05649,89746.0,89745.0,0.001]
[1765786244747,0.05649,89740.0,89739.0,0.0700547]
[1765786245052,0.05649,89740.0,89739.0,0.05891]
[1765786245552,0.05649,89737.0,89736.0,0.38976]
[1765786245952,0.05649,89737.0,89736.0,0.41971]
[1765786246254,0.05649,89737.0,89736.0,0.02896]
[1765786247856,0.05649,89737.0,89736.0,0.03096]
[1765786248847,0.05649,89737.0,89736.0,0.002]
[1765786250042,0.05649,89737.0,89736.0,0.03096]
[1765786250254,0.05649,89737.0,89736.0,0.06091]
[1765786262459,0.05649,89737.0,89736.0,0.0720551]
[1765786263945,0.01623,89742.0,89741.0,0.05512]
[1765786263946,0.06002676,89742.0,89741.0,0.05512]
[1765786264150,0.08877676,89749.0,89748.0,0.05512]
[1765786264354,0.02875,89749.0,89748.0,0.05512]
[1765786264853,0.05636,89749.0,89748.0,0.05512]
[1765786265755,0.05636,89749.0,89743.0,0.3608]
[1765786265756,0.11638676,89752.0,89751.0,0.05512]
[1765786268249,0.05636,89752.0,89751.0,0.05512]
[1765786268556,0.05636,89752.0,89751.0,0.05612]
[1765786268758,0.06002676,89758.0,89756.0,0.05512]
[1765786268961,0.02875,89757.0,89756.0,0.05512]
[1765786269162,0.02891713,89759.0,89758.0,0.05512]
[1765786269562,0.00016713,89759.0,89758.0,0.05512]
[1765786269954,0.00016713,89759.0,89758.0,0.20512]
[1765786270165,0.00016713,89759.0,89758.0,0.05512]
[1765786270355,0.00016713,89759.0,89758.0,0.75256]
[1765786271460,0.00016713,89759.0,89758.0,0.75556]
[1765786272754,0.00016713,89759.0,89758.0,0.75756]
[1765786272968,0.05652713,89759.0,89758.0,0.75748]
[1765786273471,0.05652713,89759.0,89758.0,0.75648]
[1765786274369,0.05652713,89759.0,89758.0,0.75548]
[1765786275766,0.02891713,89759.0,89758.0,0.75548]
[1765786277361,0.02891713,89759.0,89758.0,0.75544]
[1765786277869,0.05652713,89759.0,89758.0,0.75544]
[1765786278073,0.05652713,89759.0,89758.0,0.7554]
[1765786278973,0.05652713,89759.0,89758.0,0.05812]
[1765786279175,0.05652713,89759.0,89758.0,0.638]
[1765786280069,0.02891713,89759.0,89758.0,0.638]
[1765786282578,0.05652713,89759.0,89758.0,0.638]
[1765786283077,0.05652713,89759.0,89758.0,0.75528]
[1765786283277,0.02891713,89759.0,89758.0,0.75528]
[1765786284572,0.00016713,89759.0,89758.0,0.75528]
[1765786284772,0.02891713,89759.0,89758.0,1.11608]
[1765786284962,0.05652713,89759.0,89758.0,1.11608]
[1765786285972,0.05652713,89759.0,89758.0,0.41892]
[1765786286277,0.05652713,89759.0,89758.0,1.11604]
[1765786286474,0.05652713,89759.0,89758.0,0.41892]
[1765786286676,0.05652713,89759.0,89758.0,1.11604]
[1765786287075,0.05652713,89759.0,89758.0,0.41892]
[1765786287277,0.05652713,89759.0,89758.0,1.11608]
[1765786288577,0.05652713,89759.0,89758.0,0.03056]
[1765786288779,0.05652713,89759.0,89758.0,0.003]
[1765786289080,0.05652713,89759.0,89758.0,0.03243]
[1765786289668,0.05652713,89759.0,89758.0,0.0596]
[1765786291264,0.05652713,89759.0,89758.0,0.03243]
[1765786291470,0.05652713,89759.0,89758.0,0.003]
[1765786292173,0.05652713,89759.0,89758.0,0.03014]
[1765786292575,0.05652713,89759.0,89758.0,0.05925]
[1765786292772,0.05652713,89759.0,89758.0,0.03014]
[1765786292982,0.05652713,89759.0,89758.0,0.05925]
[1765786293165,0.07341,89750.0,89749.0,0.3608]
[1765786293366,0.07341,89750.0,89749.0,0.41705]
[1765786293570,0.07341,89750.0,89749.0,0.05625]
[1765786294371,0.05694,89741.0,89740.0,0.54824804]
[1765786294570,0.05694,89741.0,89740.0,0.41705]
[1765786295673,0.05694,89741.0,89740.0,0.42105]
[1765786295874,0.05694,89741.0,89740.0,0.42605]
[1765786299086,0.05694,89741.0,89740.0,0.42105]
[1765786299276,0.05694,89741.0,89740.0,0.41805]
[1765786304980,0.02763,89741.0,89740.0,0.41805]
[1765786308790,0.05694,89741.0,89740.0,0.41805]
[1765786308991,0.0680837,89748.0,89747.0,0.05625]
[1765786309682,0.0845537,89748.0,89747.0,0.05625]
[1765786309988,0.0680837,89748.0,89747.0,0.05625]
[1765786310690,0.05694,89748.0,89747.0,0.05625]
[1765786311886,0.05694,89748.0,89747.0,0.05725]
[1765786313192,0.02763,89751.0,89750.0,0.05625]
[1765786313896,0.06002676,89757.0,89755.0,0.0673927]
[1765786314103,0.00016713,89759.0,89757.0,0.05625]
[1765786314104,0.11696676,89758.0,89757.0,0.05625]
[1765786314296,0.05694,89758.0,89757.0,0.05625]
[1765786314502,0.00016713,89759.0,89758.0,0.0673924]
[1765786316300,0.02779713,89759.0,89758.0,0.0673924]
[1765786317189,0.02779713,89759.0,89758.0,0.0693924]
[1765786317797,0.02779713,89759.0,89758.0,0.0673924]
[1765786317998,0.00016713,89759.0,89758.0,0.0693924]
[1765786319000,0.05738713,89759.0,89758.0,0.05825]
[1765786320090,0.05738713,89759.0,89758.0,0.02914]
[1765786321204,0.05738713,89759.0,89758.0,0.02714]
[1765786321396,0.06138713,89759.0,89758.0,0.02714]
[1765786321609,0.06138713,89759.0,89741.0,0.05564]
[1765786321610,0.0111443,89742.0,89741.0,0.05564]
[1765786321897,0.0683643,89742.0,89741.0,0.05564]
[1765786323605,0.0683643,89742.0,89736.0,0.371945]
[1765786323606,0.11729152,89746.0,89745.0,0.05564]
[1765786323904,0.08912152,89750.0,89749.0,0.05564]
[1765786324207,0.11729152,89750.0,89749.0,0.05564]
[1765786324800,0.05722,89750.0,89749.0,0.05564]
[1765786325203,0.02905,89750.0,89749.0,0.05564]
[1765786325708,0.05722,89750.0,89749.0,0.05564]
[1765786326407,0.05722,89750.0,89749.0,0.05664]
[1765786329414,0.05722,89750.0,89749.0,0.05564]
[1765786329605,0.05722,89750.0,89749.0,0.05664]
[1765786338016,0.11729398,89750.0,89749.0,0.05664]
[1765786338409,0.11729398,89750.0,89749.0,0.05564]
[1765786338609,0.11729398,89750.0,89749.0,0.05664]
[1765786340413,0.05738713,89759.0,89758.0,0.05564]
[1765786342119,0.05838713,89759.0,89758.0,0.05564]
[1765786342723,0.05738713,89759.0,89758.0,0.05564]
[1765786345122,0.05738713,89759.0,89748.0,0.3608]
[1765786345123,0.05722,89749.0,89748.0,0.3608]
[1765786345421,0.05722,89749.0,89748.0,0.05564]
[1765786346626,0.05722,89749.0,89748.0,0.05664]
[1765786348128,0.05722,89749.0,89748.0,0.05564]
[1765786349326,0.11731894,89749.0,89748.0,0.05564]
[1765786351128,0.05722,89749.0,89748.0,0.02843]
[1765786351637,0.05722,89749.0,89748.0,0.05587]
[1765786352218,0.11736477,89749.0,89748.0,0.05587]
[1765786352419,0.0682328,89755.0,89754.0,0.05618]
[1765786356724,0.0682328,89755.0,89754.0,0.02874]
[1765786357930,0.0682337,89747.0,89746.0,0.41698]
[1765786360531,0.0682337,89747.0,89746.0,0.41798]
[1765786363926,0.0682337,89747.0,89746.0,0.05718]
[1765786364837,0.12838527,89747.0,89746.0,0.05718]
[1765786365935,0.0682337,89747.0,89746.0,0.05718]
[1765786377054,0.0682337,89747.0,89746.0,0.001]
[1765786377359,0.0682337,89747.0,89746.0,0.05804]
[1765786380657,0.0682337,89747.0,89746.0,0.001]
[1765786380857,0.0682337,89747.0,89739.0,0.3608]
[1765786380858,0.0864046,89740.0,89739.0,0.3608]
[1765786381250,0.0698152,89735.0,89734.0,0.00016713]
[1765786381649,0.4306152,89735.0,89734.0,0.00016713]
[1765786382054,0.4306152,89735.0,89734.0,0.02826713]
[1765786382859,0.4306152,89735.0,89734.0,0.03226713]
[1765786383061,0.4306152,89735.0,89734.0,0.06120713]
[1765786383266,0.4306152,89735.0,89734.0,0.06020713]
[1765786384374,0.4306152,89735.0,89734.0,0.05820713]
[1765786385158,0.4306152,89735.0,89734.0,0.00116713]
[1765786388461,0.4306152,89735.0,89734.0,0.02926713]
[1765786388660,0.4306152,89735.0,89734.0,0.05820713]
[1765786389766,0.4306152,89735.0,89734.0,0.02926713]
[1765786389960,0.4306152,89735.0,89734.0,0.05820713]
[1765786390161,0.4306152,89735.0,89734.0,0.00116713]
[1765786390362,0.4306152,89735.0,89734.0,0.02926713]
[1765786390759,0.4306152,89735.0,89734.0,0.00116713]
[1765786391265,0.0864071,89720.0,89719.0,0.41784]
[1765786392375,0.0864071,89720.0,89719.0,0.42184]
[1765786392670,0.0864071,89720.0,89719.0,0.42484]
[1765786393365,0.0864071,89720.0,89719.0,0.06404]
[1765786393565,0.0864071,89720.0,89719.0,0.0351]
[1765786393761,0.0864071,89720.0,89719.0,0.007]
[1765786393967,0.14646888,89720.0,89719.0,0.007]
[1765786394166,0.0864071,89720.0,89719.0,0.007]
[1765786394673,0.0864071,89720.0,89719.0,0.001]
[1765786394877,0.0864071,89720.0,89719.0,0.003]
[1765786395060,0.14646888,89720.0,89719.0,0.003]
[1765786395265,0.0864071,89720.0,89719.0,0.003]
[1765786395674,0.14646888,89720.0,89719.0,0.003]
[1765786395869,0.0698181,89712.0,89711.0,0.05720713]
[1765786397580,0.0698181,89712.0,89711.0,0.06220713]
[1765786397974,0.05867,89712.0,89711.0,0.06220713]
[1765786399973,0.05867,89715.0,89711.0,0.00516713]
[1765786400275,0.05867,89715.0,89714.0,0.05704]
[1765786400883,0.02923,89715.0,89714.0,0.05704]
[1765786401082,0.14646838,89724.0,89723.0,0.05704]
[1765786401272,0.0864066,89724.0,89723.0,0.05704]
[1765786401585,0.0698166,89724.0,89723.0,0.05704]
[1765786403471,0.12987838,89724.0,89723.0,0.05704]
[1765786403669,0.12987838,89724.0,89723.0,0.05804]
[1765786406384,0.0698166,89724.0,89723.0,0.05804]
[1765786408577,0.0698166,89724.0,89723.0,0.001]
[1765786408776,0.0698166,89724.0,89723.0,0.02927]
[1765786409076,0.0698166,89724.0,89723.0,0.05895]
[1765786410181,0.0698166,89724.0,89723.0,0.02927]
[1765786410788,0.0698166,89724.0,89723.0,0.001]
[1765786411782,0.084907,89712.0,89711.0,0.05559713]
[1765786412891,0.0677764,89717.0,89712.0,0.01502]
[1765786413087,0.0111464,89717.0,89716.0,0.05543]
[1765786413588,0.0389364,89717.0,89716.0,0.05543]
[1765786414083,0.0677764,89717.0,89716.0,0.05543]
[1765786414591,0.0677764,89717.0,89716.0,0.05643]
[1765786415787,0.0677764,89717.0,89716.0,0.05843]
[1765786420295,0.12786545,89717.0,89716.0,0.05843]
[1765786420993,0.12786545,89717.0,89716.0,0.003]
[1765786421296,0.0677764,89717.0,89716.0,0.003]
[1765786422393,0.0677764,89717.0,89716.0,0.03061]
[1765786423688,0.0677764,89717.0,89716.0,0.003]
[1765786427194,0.0677764,89717.0,89716.0,0.03061]
[1765786427598,0.0677764,89717.0,89716.0,0.05843]
[1765786444997,0.0389364,89717.0,89716.0,0.05843]
[1765786445202,0.0689959,89721.0,89720.0,0.05813]
[1765786445811,0.14900786,89725.0,89724.0,0.05813]
[1765786446013,0.00016713,89728.0,89716.0,0.01802]
[1765786446014,0.05801713,89728.0,89727.0,0.05813]
[1765786448015,0.00016713,89728.0,89727.0,0.05813]
[1765786448416,0.06132576,89728.0,89727.0,0.05813]
[1765786448815,0.06032576,89728.0,89727.0,0.05813]
[1765786449018,0.06032576,89728.0,89727.0,0.05913]